fUSD/lending_fUSD_20240414
["ID","MTS","AMOUNT","RATE_DAILY","PERIOD"]
[322587632,1713088245459,-50000.0,0.00038,8]
[322587633,1713088245470,-2615.56,0.00038027,15]
[322587634,1713088245480,-150.0,0.0003807,120]
[322587635,1713088245491,-157.041418,0.00038198,35]
[322587636,1713088245501,-996.54,0.0003833,2]
[322587637,1713088245511,-155.16,0.00038356,2]
[322587638,1713088245521,-152.27,0.00038356,2]
[322587639,1713088245532,-157.041418,0.00038498,36]
[322587640,1713088245543,-1547.3,0.000385,3]
[322587641,1713088245553,-1547.3,0.000385,3]
[322587642,1713088245566,-1547.3,0.000385,3]
[322587643,1713088245581,-1547.3,0.000385,3]
[322587644,1713088245591,-1547.3,0.000385,3]
[322587645,1713088245601,-1547.3,0.000385,3]
[322587646,1713088245612,-1547.3,0.000385,3]
[322587647,1713088245622,-1547.3,0.000385,3]
[322587648,1713088245633,-1547.3,0.000385,3]
[322587649,1713088245644,-1547.3,0.000385,3]
[322587650,1713088245654,-1547.3,0.000385,3]
[322587651,1713088245664,-1547.3,0.000385,3]
[322587652,1713088245674,-1547.3,0.000385,3]
[322587653,1713088245685,-1547.3,0.000385,3]
[322587654,1713088245695,-1547.3,0.000385,3]
[322587655,1713088245705,-1547.3,0.000385,3]
[322587656,1713088245716,-1547.3,0.000385,3]
[322587657,1713088245726,-1547.3,0.000385,3]
[322587658,1713088245736,-1547.3,0.000385,3]
[322587659,1713088245746,-1547.3,0.000385,3]
[322587660,1713088245756,-153.32,0.000385,3]
[322587661,1713088245766,-200.0,0.00038549,15]
[322587662,1713088245776,-1000.0,0.00038549,20]
[322587663,1713088245786,-500.0,0.00038549,20]
[322587664,1713088245796,-200.0,0.00038549,20]
[322587665,1713088245806,-696.0,0.00038603,7]
[322587666,1713088245819,-157.041418,0.00038798,37]
[322587667,1713088245829,-150.0,0.00038807,120]
[322587668,1713088245839,-161.66,0.00038933,2]
[322587669,1713088245849,-50000.0,0.00039,9]
[322587670,1713088245858,-50000.0,0.00039,19]
[322587671,1713088245868,-950.0,0.00039,3]
[322587672,1713088245878,-157.041418,0.00039198,38]
[322587673,1713088245888,-160.0,0.00039229,3]
[322587674,1713088245898,-160.0,0.00039237,3]
[322587675,1713088245907,-160.0,0.00039246,3]
[322587676,1713088245918,-160.0,0.00039255,3]
[322587677,1713088245928,-203.0,0.0003937,2]
[322587678,1713088245939,-996.54,0.00039395,2]
[322587679,1713088245948,-434.46,0.000394,7]
[322587680,1713088245958,-348.22,0.000394,7]
[322587681,1713088245968,-157.041418,0.00039498,39]
[322587682,1713088245977,-79985.31837341,0.000395,30]
[322587683,1713088245987,-911.33,0.00039573,2]
[322587684,1713088245997,-152.27,0.00039726,2]
[322587685,1713088246007,-157.041418,0.00039798,32]
[322587688,1713088246017,-1766.37387071,0.000399,48]
[322587691,1713088246032,-1766.37387069,0.000399,48]
[322587693,1713088246042,-1766.37387069,0.000399,48]
[322587695,1713088246052,-1766.37387069,0.000399,48]
[322587697,1713088246063,-1766.37387069,0.000399,48]
[322587699,1713088246081,-1766.37387069,0.000399,48]
[322587701,1713088246093,-1766.37387069,0.000399,48]
[322587703,1713088246105,-696.0,0.00039973,7]
[322587705,1713088246118,-50000.0,0.0004,40]
[322587706,1713088246129,-6782.25147741,0.0004,30]
[322587708,1713088246195,-43217.74852259,0.0004,30]
[322587709,1713088246206,-231.65632803,0.0004,120]
[322587710,1713088246216,-3356.81383592,0.0004,4]
[322587711,1713088246226,-27133.92829464,0.0004,4]
[322587712,1713088246237,-193.01379895,0.0004,2]
[322587713,1713088246248,-22139.36635788,0.0004,4]
[322587714,1713088246259,-548.35400054,0.0004,4]
[322587715,1713088246270,-959.45180685,0.0004,30]
[322587716,1713088246280,-1399.8046501,0.0004,30]
[322587717,1713088246290,-365.47266567,0.0004,30]
[322587718,1713088246300,-402.81108403,0.0004,30]
[322587719,1713088246310,-2002.10180942,0.0004,2]
[322587720,1713088246325,-749.76878721,0.0004,30]
[322587721,1713088246335,-2458.88819269,0.0004,2]
[322587722,1713088246345,-369.74406119,0.0004,2]
[322587723,1713088246355,-529.95923217,0.0004,120]
[322587724,1713088246365,-3232.27565572,0.0004,30]
[322587725,1713088246375,-2853.72301667,0.0004,5]
[322587726,1713088246385,-507.79199758,0.0004,120]
[322587727,1713088246395,-1000.0,0.0004,2]
[322587728,1713088246405,-185.0,0.0004,32]
[322587729,1713088246417,-153.604901,0.0004,14]
[322587730,1713088246427,-151.0,0.0004,14]
[322587731,1713088246437,-151.0,0.0004,14]
[322587732,1713088246447,-225.265027,0.0004,14]
[322587733,1713088246457,-151.883449,0.0004,14]
[322587734,1713088246467,-225.265027,0.0004,14]
[322587735,1713088246477,-151.0,0.0004,14]
[322587736,1713088246487,-151.0,0.0004,14]
[322587737,1713088246497,-151.0,0.0004,14]
[322587738,1713088246507,-151.0,0.0004,14]
[322587739,1713088246520,-151.0,0.0004,14]
[322587740,1713088246530,-151.0,0.0004,14]
[322587741,1713088246540,-154.482494,0.0004,14]
[322587742,1713088246550,-151.0,0.0004,14]
[322587743,1713088246560,-151.0,0.0004,14]
[322587744,1713088246571,-151.0,0.0004,14]
[322587745,1713088246582,-151.0,0.0004,14]
[322587746,1713088246592,-776.036863,0.0004,7]
[322587747,1713088246602,-776.036863,0.0004,7]
[322587748,1713088246612,-532.624572,0.0004,14]
[322587749,1713088246622,-532.624572,0.0004,14]
[322587750,1713088246633,-151.0,0.0004,14]
[322587751,1713088246643,-258.098084,0.0004,14]
[322587752,1713088246652,-439.05708,0.0004,14]
[322587753,1713088246662,-151.0,0.0004,14]
[322587754,1713088246671,-439.05708,0.0004,14]
[322587755,1713088246681,-151.471127,0.0004,14]
[322587756,1713088246690,-244.296489,0.0004,14]
[322587757,1713088246700,-151.0,0.0004,14]
[322587758,1713088246709,-151.0,0.0004,14]
[322587759,1713088246719,-151.0,0.0004,14]
[322587760,1713088246729,-151.0,0.0004,14]
[322587761,1713088246741,-151.0,0.0004,14]
[322587762,1713088246751,-177.952692,0.0004,14]
[322587763,1713088246760,-151.0,0.0004,14]
[322587764,1713088246770,-177.952692,0.0004,14]
[322587765,1713088246780,-167.211154,0.0004,14]
[322587766,1713088246790,-167.211154,0.0004,14]
[322587767,1713088246800,-151.0,0.0004,7]
[322587769,1713088246810,-151.0,0.0004,14]
[322587770,1713088246822,-151.0,0.0004,14]
[322587771,1713088246832,-151.0,0.0004,14]
[322587772,1713088246842,-799.948108,0.0004,14]
[322587773,1713088246852,-153.145968,0.0004,7]
[322587774,1713088246861,-799.948108,0.0004,14]
[322587775,1713088246871,-426.967051,0.0004,14]
[322587776,1713088246882,-151.0,0.0004,14]
[322587777,1713088246892,-426.967051,0.0004,14]
[322587778,1713088246902,-151.0,0.0004,14]
[322587779,1713088246911,-151.0,0.0004,14]
[322587780,1713088246921,-151.933996,0.0004,14]
[322587781,1713088246931,-151.0,0.0004,14]
[322587782,1713088246941,-155.064629,0.0004,14]
[322587783,1713088246951,-1888.312395,0.0004,14]
[322587784,1713088246961,-1888.312395,0.0004,14]
[322587785,1713088246971,-151.0,0.0004,14]
[322587786,1713088246981,-746.958894,0.0004,14]
[322587787,1713088246991,-205.338675,0.0004,14]
[322587788,1713088247003,-151.0,0.0004,14]
[322587789,1713088247013,-746.958894,0.0004,14]
[322587790,1713088247023,-151.0,0.0004,14]
[322587791,1713088247032,-205.338675,0.0004,14]
[322587792,1713088247042,-151.0,0.0004,14]
[322587793,1713088247053,-297.814214,0.0004,14]
[322587794,1713088247064,-297.814214,0.0004,14]
[322587795,1713088247076,-218.222334,0.0004,14]
[322587796,1713088247085,-218.222334,0.0004,14]
[322587797,1713088247095,-151.0,0.0004,14]
[322587798,1713088247104,-153.142966,0.0004,14]
[322587799,1713088247116,-151.0,0.0004,14]
[322587800,1713088247127,-274.364586,0.0004,14]
[322587801,1713088247139,-151.0,0.0004,14]
[322587802,1713088247149,-274.364586,0.0004,14]
[322587803,1713088247160,-151.0,0.0004,14]
[322587804,1713088247169,-151.0,0.0004,14]
[322587805,1713088247179,-151.0,0.0004,14]
[322587806,1713088247188,-157.041418,0.00040198,33]
[322587807,1713088247198,-412.35,0.00040452,2]
[322587808,1713088247208,-412.35,0.00040452,2]
[322587809,1713088247381,-996.54,0.0004046,2]
[322587810,1713088247390,-157.041418,0.00040498,34]
[322587811,1713088247400,-500.0,0.00040503,4]
[322587812,1713088247409,-500.0,0.00040503,4]
[322587813,1713088247418,-500.0,0.00040503,4]
[322587814,1713088247428,-500.0,0.00040503,4]
[322587815,1713088247438,-500.0,0.00040503,4]
[322587816,1713088247447,-500.0,0.00040503,4]
[322587817,1713088247456,-500.0,0.00040503,4]
[322587818,1713088247466,-500.0,0.00040503,4]
[322587819,1713088247477,-500.0,0.00040503,4]
[322587820,1713088247493,-500.0,0.00040503,4]
[322587821,1713088247502,-500.0,0.00040503,4]
[322587822,1713088247511,-500.0,0.00040503,4]
[322587823,1713088247521,-500.0,0.00040503,4]
[322587824,1713088247531,-392.0,0.00040503,4]
[322587825,1713088247541,-1647.0,0.000406,7]
[322587826,1713088247551,-2615.56,0.00040767,15]
[322587827,1713088247561,-157.041418,0.00040798,35]
[322587828,1713088247576,-166.66,0.00040863,2]
[322587829,1713088247587,-150.0,0.00040863,2]
[322587830,1713088247597,-794.43,0.00040863,2]
[322587831,1713088247607,-521.03,0.00040863,2]
[322587832,1713088247618,-150.0,0.00040863,2]
[322587833,1713088247629,-203.0,0.0004087,2]
[322587834,1713088247640,-50000.0,0.00041,41]
[322587835,1713088247650,-50000.0,0.00041,31]
[322587836,1713088247660,-1585.45816823,0.00041,2]
[322587837,1713088247670,-1000.0,0.00041,3]
[322587838,1713088247680,-150.0,0.00041034,120]
[322587839,1713088247690,-334.92792625,0.00041079,30]
[322587840,1713088247700,-156.3106271,0.00041084,30]
[322587841,1713088247709,-150.04358553,0.00041084,30]
[322587842,1713088247719,-154.99801969,0.00041093,30]
[322587843,1713088247729,-1000.0,0.00041095,2]
[322587844,1713088247740,-157.0,0.00041096,2]
[322587845,1713088247751,-152.27,0.00041096,2]
[322587846,1713088247761,-334.92792625,0.00041113,30]
[322587847,1713088247770,-290.1950457,0.00041145,30]
[322587848,1713088247780,-239.1464098,0.00041177,30]
[322587849,1713088247790,-157.041418,0.00041198,36]
[322587850,1713088247799,-162.68783336,0.00041213,30]
[322587851,1713088247808,-150.0,0.00041247,120]
[322587852,1713088247818,-154.38291623,0.00041277,30]
[322587853,1713088247831,-150.04358553,0.00041288,30]
[322587854,1713088247841,-294.85396009,0.00041333,30]
[322587855,1713088247850,-290.1950457,0.00041338,30]
[322587856,1713088247859,-696.0,0.00041343,7]
[322587857,1713088247868,-239.1464098,0.00041374,30]
[322587858,1713088247876,-294.85396009,0.00041413,30]
[322587859,1713088247886,-290.1950457,0.0004147,30]
[322587860,1713088247896,-157.01983611,0.00041479,30]
[322587861,1713088247905,-157.041418,0.00041498,37]
[322587862,1713088247914,-1032.962052,0.00041525,2]
[322587863,1713088247923,-154.78946012,0.0004154,30]
[322587864,1713088247933,-150.04358553,0.00041576,30]
[322587865,1713088247942,-156.3106271,0.00041582,30]
[322587866,1713088247951,-434.46,0.000416,7]
[322587867,1713088247960,-348.22,0.000416,7]
[322587868,1713088247969,-155.46548869,0.00041618,30]
[322587869,1713088247978,-412.35,0.00041623,2]
[322587870,1713088247988,-908.17,0.00041623,2]
[322587871,1713088247997,-412.35,0.00041623,2]
[322587872,1713088248006,-908.17,0.00041623,2]
[322587873,1713088248015,-412.35,0.00041623,2]
[322587874,1713088248024,-908.17,0.00041623,2]
[322587875,1713088248034,-908.17,0.00041623,2]
[322587876,1713088248044,-412.35,0.00041623,2]
[322587877,1713088248053,-412.35,0.00041623,2]
[322587878,1713088248063,-908.17,0.00041623,2]
[322587879,1713088248077,-820.0924385,0.00041623,2]
[322587880,1713088248780,-88.0775615,0.00041623,2]
[322587881,1713088248789,-257.0074385,0.00041623,2]
[322587882,1713088249237,-567.6925615,0.00041623,2]
[322587883,1713088249246,-908.17,0.00041623,2]
[322587884,1713088249256,-908.17,0.00041623,2]
[322587885,1713088249266,-908.17,0.00041623,2]
[322587886,1713088249275,-908.17,0.00041623,2]
[322587887,1713088249284,-908.17,0.00041623,2]
[322587888,1713088249294,-908.17,0.00041623,2]
[322587889,1713088249303,-908.17,0.00041623,2]
[322587890,1713088249312,-908.17,0.00041623,2]
[322587891,1713088249321,-334.92792625,0.00041644,30]
[322587892,1713088249331,-155.03847772,0.00041667,30]
[322587893,1713088249340,-239.1464098,0.00041676,30]
[322587894,1713088249350,-171.20687448,0.0004168,30]
[322587895,1713088249359,-290.1950457,0.00041749,30]
[322587896,1713088249368,-157.041418,0.00041798,38]
[322587897,1713088249377,-238.30762804,0.00041837,2]
[322587898,1713088249401,-673.02237196,0.00041837,2]
[322587899,1713088249410,-166.66666666,0.00041848,30]
[322587900,1713088249420,-157.12752826,0.00041862,30]
[322587901,1713088249429,-150.0,0.00041897,2]
[322587902,1713088249438,-155.55,0.00041897,2]
[322587903,1713088249447,-161.17,0.00041897,2]
[322587904,1713088249456,-300.0,0.00041897,2]
[322587905,1713088249465,-153.49,0.00041897,2]
[322587906,1713088249474,-324.94,0.00041897,2]
[322587907,1713088249483,-150.0,0.00041897,2]
[322587908,1713088249493,-152.05,0.00041897,2]
[322587909,1713088249502,-150.0,0.00041897,2]
[322587910,1713088249512,-150.0,0.00041897,2]
[322587911,1713088249521,-150.0,0.00041897,2]
[322587912,1713088249530,-150.0,0.00041897,2]
[322587913,1713088249540,-150.0,0.00041897,2]
[322587914,1713088249549,-150.0,0.00041897,2]
[322587915,1713088249559,-150.0,0.00041897,2]
[322587916,1713088249568,-150.06,0.00041897,2]
[322587917,1713088249580,-157.12752826,0.00041906,30]
[322587918,1713088249589,-156.3106271,0.00041993,30]
[322587919,1713088249598,-50000.0,0.00042,42]
[322587920,1713088249607,-30486.54983071,0.00042,32]
[322587921,1713088249660,-1506.28635,0.00042,32]
[322587922,1713088251121,-556.59202541,0.000209,2]
[322587923,1713088251132,-2051.92006099,0.000209,2]
[322587924,1713088251143,-161.63163552,0.00026349,2]
[322587925,1713088251154,-151.0,0.0004,14]
[322587926,1713088251165,-283.85627808,0.00042,32]
[322587927,1713088251190,-1843.118017,0.00042,32]
[322587928,1713088251203,-1197.59218255,0.00042,32]
[322587929,1713088251235,-4469.29546376,0.00042,32]
[322587930,1713088251514,-1255.23513635,0.00042,32]
[322587931,1713088251526,-8958.06674155,0.00042,32]
[322587932,1713088251538,-2951.32,0.00042,2]
[322587933,1713088251548,-290.58663286,0.00042,2]
[322587934,1713088253495,-2699.64214933,0.00020899,2]
[322587935,1713088253505,-558.09924108,0.00020899,2]
[322587936,1713088253515,-231.43276754,0.000209,2]
[322587937,1713088253524,-92.06944203,0.00035761,5]
[322587938,1713088253537,-916.17157125,0.00035761,5]
[322587939,1713088253546,-423.46,0.00036481,3]
[322587940,1713088253555,-151.0,0.0004,14]
[322587941,1713088253565,-908.17,0.00041623,2]
[322587942,1713088253575,-709.41336714,0.00042,2]
[322587943,1713088253588,-1547.3,0.00042,4]
[322587944,1713088253597,-1547.3,0.00042,4]
[322587945,1713088253607,-1547.3,0.00042,4]
[322587946,1713088253616,-1547.3,0.00042,4]
[322587947,1713088253626,-1547.3,0.00042,4]
[322587948,1713088253635,-1262.69902762,0.00042,4]
[322587949,1713088253659,-284.60097238,0.00042,4]
[322587950,1713088253669,-1547.3,0.00042,4]
[322587951,1713088253679,-608.98902762,0.00042,4]
[322587952,1713088253727,-257.0,0.00042,4]
[322587953,1713088253742,-298.45827222,0.00042,4]
[322587955,1713088466392,222.31726829,0.00012,30]
[322587956,1713088475859,694.15098702,0.00015,2]
[322587957,1713088475890,260.17148626,0.00015,2]
[322587959,1713088504160,196.0,0.0002099,15]
[322587960,1713088504274,468.0,0.0002099,15]
[322587961,1713088504812,196.0,0.0002098,15]
[322587962,1713088504975,468.0,0.0002098,15]
[322587963,1713088505318,196.0,0.0002097,15]
[322587964,1713088505446,468.0,0.0002097,15]
[322587965,1713088505531,606.0,0.0002099,15]
[322587966,1713088505792,196.0,0.0002099,15]
[322587967,1713088505929,468.0,0.0002099,15]
[322587968,1713088506259,196.0,0.0002098,15]
[322587969,1713088506318,606.0,0.0002098,15]
[322587970,1713088506421,468.0,0.0002098,15]
[322587971,1713088506777,196.0,0.0002097,15]
[322587972,1713088506889,468.0,0.0002097,15]
[322587973,1713088507020,606.0,0.0002097,15]
[322587974,1713088507375,468.0,0.0002099,15]
[322587975,1713088507430,196.0,0.0002099,15]
[322587976,1713088507682,606.0,0.0002099,15]
[322587977,1713088508130,196.0,0.0002098,15]
[322587978,1713088508176,468.0,0.0002098,15]
[322587979,1713088508220,606.0,0.0002098,15]
[322587980,1713088509073,468.0,0.0002099,15]
[322587981,1713088509108,196.0,0.0002099,15]
[322587982,1713088509156,606.0,0.0002097,15]
[322587983,1713088509278,606.0,0.0002099,15]
[322587984,1713088509399,474.48,0.0002098,15]
[322587985,1713088509675,606.0,0.0002098,15]
[322587986,1713088509875,202.82,0.0002098,15]
[322587987,1713088510418,606.0,0.0002099,15]
[322587988,1713088510874,606.1,0.0002098,15]
[322587989,1713088623541,1898.0,0.0002099,15]
[322587990,1713088624222,1898.0,0.0002098,15]
[322587991,1713088624696,1898.0,0.0002097,15]
[322587992,1713088625197,1898.0,0.0002099,15]
[322587993,1713088625346,150.5,0.0002099,15]
[322587994,1713088625859,1898.0,0.0002098,15]
[322587995,1713088625902,150.5,0.0002098,15]
[322587996,1713088626350,1898.0,0.0002097,15]
[322587997,1713088626765,150.5,0.0002097,15]
[322587998,1713088627898,150.5,0.0002099,15]
[322587999,1713088627960,1898.0,0.0002099,15]
[322588000,1713088628057,150.5,0.0002098,15]
[322588001,1713088628385,150.5,0.0002097,15]
[322588002,1713088629122,1448.45,0.0002098,15]
[322588003,1713088629148,449.55,0.0002098,15]
[322588004,1713088629504,228.5,0.0002099,15]
[322588005,1713088629575,1898.0,0.0002099,15]
[322588006,1713088630054,1903.76,0.0002098,15]
[322588007,1713089064160,142.85049629,0.00018015,2]
[322588008,1713089064188,660.52950371,0.00018015,2]
[322588010,1713089307342,-150.0,0.0001973,2]
[322588011,1713089307369,-162.7317849,0.0001976,2]
[322588012,1713089307395,-269.611831,0.00019761,2]
[322588013,1713089307424,-166.15964522,0.00019762,2]
[322588014,1713089307450,-500.0,0.00019862,2]
[322588015,1713089307475,-19.14228818,0.00019866,2]
[322588016,1713089382870,-2386.90176123,0.00019,2]
[322588017,1713089382925,-2386.90176123,0.00019,2]
[322588018,1713089383025,-2386.90176123,0.00019,2]
[322588019,1713089383097,-2386.90176123,0.00019,2]
[322588020,1713089383132,-2386.90176123,0.00019,2]
[322588021,1713089383163,-2386.90176123,0.00019,2]
[322588022,1713089383203,-2386.90176123,0.00019,2]
[322588023,1713089383250,-2386.90176123,0.00019,2]
[322588024,1713089383301,-2386.90176123,0.00019,2]
[322588025,1713089383337,-2386.90176123,0.00019,2]
[322588026,1713089383385,-2386.90176123,0.00019,2]
[322588027,1713089406923,-2912.0201487,0.00019,2]
[322588028,1713089406976,-2820.31626576,0.00019,2]
[322588038,1713089431486,-200.0,0.00018527,2]
[322588040,1713089431499,-318.40021227,0.00019,2]
[322588043,1713089431591,-600.62998906,0.00019,2]
[322588044,1713089431601,-150.0,0.00019,2]
[322588045,1713089431610,-150.0,0.00019,2]
[322588046,1713089431619,-150.0,0.00019,2]
[322588047,1713089431628,-300.0,0.00019,2]
[322588048,1713089431637,-155.0,0.00019728,2]
[322588049,1713089431647,-437.34084086,0.00019729,2]
[322588050,1713089431749,-650.16907353,0.00019729,2]
[322588051,1713089431760,-4645.05299504,0.00019729,2]
[322588079,1713089437771,-500.0,0.00019762,2]
[322588080,1713089437781,-180.85771182,0.00019866,2]
[322588081,1713089437791,-305.56,0.00019901,2]
[322588082,1713089437801,-178.11,0.00020135,2]
[322588083,1713089437810,-1000.0,0.00020224,2]
[322588084,1713089437820,-803.38,0.00020279,2]
[322588085,1713089437830,-250.0,0.00020478,2]
[322588086,1713089437839,-499.99,0.00020478,2]
[322588087,1713089437849,-780.34286168,0.00020596,2]
[322588088,1713089437858,-150.99,0.00020596,2]
[322588089,1713089437868,-4181.6806,0.00020597,2]
[322588090,1713089437877,-4409.5616,0.00020597,2]
[322588091,1713089437886,-1047.9,0.00020597,2]
[322588092,1713089437895,-3368.31308537,0.00020598,2]
[322588093,1713089437905,-869.41583744,0.00020599,2]
[322588094,1713089437914,-3368.31308531,0.00020632,2]
[322588095,1713089437923,-869.41583743,0.00020632,2]
[322588096,1713089437932,-3368.31308531,0.00020665,2]
[322588098,1713089437942,-869.41583743,0.00020666,2]
[322588100,1713089437951,-156.92614879,0.00020695,2]
[322588102,1713089437960,-166.9536833,0.00020695,2]
[322588104,1713089437970,-155.0,0.00020695,2]
[322588106,1713089437979,-265.9681227,0.00020695,2]
[322588108,1713089437988,-304.59353416,0.00020695,2]
[322588110,1713089437997,-266.79799477,0.00020695,2]
[322588112,1713089438006,-155.87689716,0.00020695,2]
[322588114,1713089438016,-363.46482361,0.00020695,2]
[322588116,1713089438026,-1545.49398965,0.00020695,2]
[322588118,1713089438035,-207.35689785,0.00020695,2]
[322588119,1713089438044,-6214.23309789,0.00020695,2]
[322588120,1713089438053,-809.96636847,0.00020695,2]
[322588121,1713089438062,-234.41083959,0.00020695,2]
[322588122,1713089438072,-1239.24531074,0.00020695,2]
[322588123,1713089438081,-3285.32662406,0.00020696,2]
[322588124,1713089438091,-245000.0,0.00020697,2]
[322588125,1713089438100,-3368.31308531,0.00020699,2]
[322588126,1713089438110,-167.12,0.00020728,2]
[322588127,1713089438119,-3368.31308531,0.00020732,2]
[322588128,1713089438129,-3368.31308531,0.00020766,2]
[322588129,1713089438138,-3368.31308531,0.00020799,2]
[322588130,1713089438147,-3368.31308531,0.00020833,2]
[322588131,1713089438156,-3368.31308531,0.00020866,2]
[322588132,1713089438165,-426.46242322,0.00020898,2]
[322588133,1713089438174,-155.0,0.00020898,2]
[322588134,1713089438184,-5027.76410807,0.000209,2]
[322588135,1713089438193,-180.24386846,0.000209,2]
[322588136,1713089438202,-1000.0,0.000209,2]
[322588137,1713089438212,-10000.0,0.000209,2]
[322588138,1713089438221,-165.25180579,0.000209,2]
[322588139,1713089438231,-177.99290906,0.000209,2]
[322588140,1713089438240,-153.42459212,0.000209,2]
[322588141,1713089438249,-2862.7263717,0.000209,2]
[322588142,1713089438258,-2862.72637159,0.000209,2]
[322588143,1713089438268,-2862.72637159,0.000209,2]
[322588144,1713089438278,-2862.72637159,0.000209,2]
[322588145,1713089438287,-2862.72637159,0.000209,2]
[322588146,1713089438297,-2862.72637159,0.000209,2]
[322588147,1713089438306,-2862.72637159,0.000209,2]
[322588148,1713089438315,-2862.72637159,0.000209,2]
[322588149,1713089438324,-3368.31308531,0.000209,2]
[322588150,1713089438333,-2862.72637159,0.000209,2]
[322588151,1713089438343,-2862.72637159,0.000209,2]
[322588152,1713089438352,-2862.72637159,0.000209,2]
[322588153,1713089438362,-2862.72637159,0.000209,2]
[322588154,1713089438371,-1006.08156831,0.000209,2]
[322588155,1713089438380,-2862.72637159,0.000209,2]
[322588156,1713089438389,-2862.72637159,0.000209,2]
[322588157,1713089438399,-2862.72637159,0.000209,2]
[322588158,1713089438408,-2862.72637159,0.000209,2]
[322588159,1713089438419,-2862.72637159,0.000209,2]
[322588160,1713089438428,-2862.72637159,0.000209,2]
[322588161,1713089438437,-2862.72637159,0.000209,2]
[322588162,1713089438447,-2862.72637159,0.000209,2]
[322588163,1713089438461,-187.52025476,0.000209,2]
[322588164,1713089438471,-420.59483582,0.000209,2]
[322588165,1713089438480,-11038.81062976,0.000209,2]
[322588166,1713089438490,-386.73229254,0.000209,2]
[322588167,1713089438500,-1967.67006908,0.000209,2]
[322588168,1713089438510,-375.38911058,0.000209,2]
[322588169,1713089438520,-167.21418192,0.0002099,2]
[322588170,1713089438532,-167.21418192,0.0002099,2]
[322588171,1713089438541,-495.30496402,0.00020999,2]
[322588172,1713089438703,-499.23535817,0.00020999,2]
[322588173,1713089438713,-465.41775169,0.00020999,2]
[322588174,1713089438722,-187.20522088,0.00020999,2]
[322588175,1713089438732,-490.97110178,0.00020999,2]
[322588176,1713089438743,-10876694.12474264,0.00021,2]
[322588178,1713089439917,-14438022.6587518,0.00021,2]
[322588179,1713089439930,-269840.67253395,0.00021,2]
[322588183,1713089440155,-8643.67207993,0.00021,2]
[322588184,1713089440167,-4045.16678123,0.00021,2]
[322588185,1713089440178,-760.875,0.00021,2]
[322588186,1713089440189,-9257.40000601,0.00021,2]
[322588187,1713089440201,-200795.41641685,0.00021,2]
[322588188,1713089440212,-452.98134691,0.00021,2]
[322588189,1713089440224,-6912.6940881,0.00021,2]
[322588190,1713089440236,-201462.69721399,0.00021,2]
[322588191,1713089440247,-1667.82671151,0.00021,2]
[322588226,1713089442682,-869.41583743,0.00020699,2]
[322588227,1713089442693,-11955.71216258,0.00021,2]
[322588228,1713089442707,-742.01694728,0.00021,2]
[322588247,1713089443387,-464.83000305,0.00021,2]
[322588254,1713089446305,-869.41583743,0.00020733,2]
[322588255,1713089446315,-237.8508185,0.00020999,2]
[322588256,1713089446324,-47513.10376849,0.00021,2]
[322588257,1713089446336,-4822.34238322,0.00021,2]
[322588258,1713089446381,-6561.23247747,0.00021,2]
[322588259,1713089446393,-1324.8,0.00021,2]